bitfinex/quotes_ETHUSD_20220220
["timestamp","ask_amount","ask_price","bid_price","bid_amount"]
[1645388118849,0.00235823,2636.4,2636.1,0.19745879]
[1645388119249,7.9805,2637.1,2636.1,0.19745879]
[1645388119451,7.9805,2637.1,2636.0,0.548]
[1645388119650,0.00235823,2636.4,2636.0,0.548]
[1645388120500,1.00393202,2637.0,2636.0,0.548]
[1645388120696,0.00237094,2636.3,2636.0,0.548]
[1645388121698,1.41950977,2636.4,2636.0,0.548]
[1645388122000,0.00237095,2636.3,2636.0,0.548]
[1645388122804,1.00393202,2637.0,2636.0,0.548]
[1645388122805,1.41950977,2636.6,2636.0,0.548]
[1645388123202,0.00237095,2636.3,2636.0,12.048]
[1645388124164,1.41950977,2636.6,2636.0,0.548]
[1645388124366,0.00237199,2636.3,2636.0,0.548]
[1645388124567,0.00237199,2636.3,2636.1,11.5]
[1645388124769,0.00237199,2636.3,2636.2,12.24545879]
[1645388125169,0.00237199,2636.3,2636.2,0.74545879]
[1645388125365,1.41950977,2636.7,2636.2,0.74545879]
[1645388125566,0.00237196,2636.4,2636.2,0.74545879]
[1645388126170,0.00237196,2636.4,2636.2,0.69545879]
[1645388126469,1.41950977,2636.6,2636.2,0.69545879]
[1645388126667,0.00237195,2636.4,2636.2,0.69545879]
[1645388127697,1.41950977,2636.7,2636.2,0.69545879]
[1645388127898,0.00237468,2636.4,2636.2,0.69545879]
[1645388128804,1.41950977,2636.6,2636.2,0.14745879]
[1645388129200,0.00237468,2636.4,2636.2,0.12234307]
[1645388129401,1.42188445,2636.4,2636.2,0.12234307]
[1645388129603,1.41950977,2636.3,2636.2,0.12234307]
[1645388129800,1.41950977,2636.3,2635.5,1.04468005]
[1645388129999,1.41950977,2636.3,2635.9,0.12234307]
[1645388130199,1.16570034,2636.2,2635.9,0.12234307]
[1645388131247,2.58521011,2636.2,2635.9,0.12234307]
[1645388131647,2.58758176,2636.2,2635.9,0.12234307]
[1645388132251,0.00237165,2636.2,2635.9,0.12234307]
[1645388132651,1.41950977,2636.3,2635.9,0.12234307]
[1645388132850,1.37188142,2636.3,2635.9,0.12234307]
[1645388133248,1.00485556,2636.2,2635.9,0.12234307]
[1645388133751,1.89272037,2636.5,2635.9,0.12234307]
[1645388134351,1.89272037,2636.6,2635.9,0.12234307]
[1645388134811,1.89272037,2636.7,2635.9,0.12234307]
[1645388135105,0.00237358,2636.4,2635.7,0.548]
[1645388135903,0.00237358,2636.4,2635.8,0.85541548]
[1645388136106,1.89272037,2636.6,2635.8,0.85541548]
[1645388136305,0.00237351,2636.3,2635.8,0.85541548]
[1645388136508,0.00237351,2636.3,2635.8,12.35541548]
[1645388136904,0.00237351,2636.3,2635.8,0.85541548]
[1645388137105,0.00237351,2636.3,2635.8,12.30541548]
[1645388137305,1.89272037,2636.7,2635.8,0.80541548]
[1645388137506,0.00237351,2636.3,2635.8,0.80541548]
[1645388137706,0.00237351,2636.3,2635.7,1.779]
[1645388138105,1.84509388,2636.5,2635.7,1.779]
[1645388138545,1.10123227,2636.8,2635.7,1.779]
[1645388138745,0.84301392,2636.4,2635.7,1.779]
[1645388138946,0.84301392,2636.4,2635.4,0.548]
[1645388139154,1.14301392,2636.4,2635.1,1.8985018]
[1645388139348,3.5,2636.3,2635.1,1.8985018]
[1645388139645,2.14301392,2636.4,2635.1,1.8985018]
[1645388139845,2.14301392,2636.4,2635.4,0.00082193]
[1645388140046,0.84301392,2636.4,2635.4,0.00082193]
[1645388140446,0.84301392,2636.4,2635.9,0.12234307]
[1645388140647,10.4795,2636.7,2635.9,0.12234307]
[1645388140848,1.41999598,2636.1,2635.9,0.12234307]
[1645388141150,13.53813845,2636.7,2635.9,0.12234307]
[1645388141653,2.35813845,2636.6,2635.9,0.12234307]
[1645388141847,1.10424373,2636.5,2635.9,0.12234307]
[1645388142294,0.00258123,2636.4,2635.9,0.12234307]
[1645388143294,8.76238218,2636.5,2635.9,0.12234307]
[1645388143496,0.00258116,2636.4,2635.9,0.12234307]
[1645388144297,0.00258116,2636.4,2635.9,0.10211385]
[1645388144596,0.94401675,2636.1,2635.9,0.10211385]
[1645388144993,0.00258116,2636.4,2635.9,0.10211385]
[1645388145195,1.89645364,2636.1,2635.9,0.10211385]
[1645388145396,1.89645364,2636.0,2635.9,0.10211385]
[1645388145595,1.89645364,2636.1,2635.4,0.01291095]
[1645388145796,1.42241664,2635.8,2635.1,2.6706332]
[1645388146047,1.42241664,2635.8,2635.7,0.10211385]
[1645388146246,1.89645364,2636.0,2635.7,0.10211385]
[1645388146746,1.42247954,2635.8,2635.7,0.10211385]
[1645388147146,1.42247954,2635.9,2635.7,0.10211385]
[1645388147546,1.42247954,2636.0,2635.7,0.10211385]
[1645388147947,1.42247954,2636.1,2635.7,0.10211385]
[1645388148749,9.24035364,2636.4,2635.7,0.10211385]
[1645388148750,1.42247954,2636.0,2635.7,0.10211385]
[1645388148946,1.42247954,2635.8,2635.7,0.05211385]
[1645388149649,7.3439,2636.4,2635.7,0.05211385]
[1645388149650,1.42247954,2635.9,2635.7,0.05211385]
[1645388150502,1.42247954,2635.9,2635.7,0.00211385]
[1645388150899,1.42247954,2635.9,2635.4,0.55057883]
[1645388151301,1.42247954,2635.8,2635.4,12.05057883]
[1645388151500,1.42247954,2636.2,2635.4,12.05057883]
[1645388151702,9.2429315,2636.4,2635.4,12.048]
[1645388151703,1.42247954,2636.0,2635.4,12.048]
[1645388151903,1.42247954,2636.0,2635.4,0.5505787]
[1645388152904,1.42247954,2636.1,2635.4,0.548]
[1645388153131,1.42247954,2636.1,2635.4,0.55057877]
[1645388153303,1.42247954,2636.1,2635.4,2.60543947]
[1645388153751,1.89645364,2636.3,2635.4,14.10543947]
[1645388153752,1.42247954,2636.0,2635.4,14.10543947]
[1645388153950,1.42247954,2636.0,2635.4,2.60543947]
[1645388154149,1.89645364,2636.3,2635.4,2.6028607]
[1645388154150,1.42247954,2636.1,2635.4,2.6028607]
[1645388154350,1.42247954,2636.1,2635.4,2.60543947]
[1645388155152,1.89645364,2636.3,2635.4,2.60543947]
[1645388155153,1.42247954,2636.0,2635.4,2.60543947]
[1645388155349,1.42247954,2636.0,2635.4,2.6028607]
[1645388155550,1.42247954,2636.0,2635.4,1.4973]
[1645388155750,1.42247954,2636.0,2635.4,1.4998788]
[1645388156150,1.42247954,2636.0,2635.4,0.5505788]
[1645388156551,1.42247954,2636.0,2635.5,11.5]
[1645388156751,1.42247954,2636.0,2635.5,0.548]
[1645388157603,1.89645364,2636.3,2635.5,0.548]
[1645388157604,1.42247954,2636.1,2635.5,0.548]
[1645388157997,1.42247954,2636.0,2635.5,0.548]
[1645388158396,1.42247954,2636.0,2635.5,12.048]
[1645388158597,1.42247954,2636.0,2635.5,0.548]
[1645388160397,1.42247954,2636.0,2635.5,12.048]
[1645388160600,1.42247954,2636.2,2635.5,0.548]
[1645388161859,1.42247954,2636.2,2635.5,12.048]
[1645388162654,1.42247954,2636.2,2635.6,12.67829713]
[1645388163456,1.42247954,2636.2,2635.5,0.548]
[1645388164657,2.48919253,2636.2,2635.5,0.548]
[1645388164902,1.42247954,2636.1,2635.5,0.548]
[1645388166803,1.42247954,2635.9,2635.5,0.548]
[1645388167803,2.47878799,2636.0,2635.5,0.548]
[1645388168205,1.42247954,2635.9,2635.5,0.548]
[1645388169847,1.42247954,2635.9,2635.3,1.128]
[1645388170051,1.42247954,2635.9,2635.4,0.00257877]
[1645388170247,1.42247954,2635.8,2635.4,0.00257877]
[1645388170846,1.42247954,2635.8,2635.3,1.128]
[1645388171349,1.42247954,2635.8,2635.4,0.0025787]
[1645388171948,1.43026465,2635.8,2635.4,0.0025787]
[1645388172149,1.43026465,2635.8,2635.3,1.128]
[1645388172395,1.43026465,2635.8,2635.4,0.0025787]
[1645388173399,1.43026465,2635.8,2635.3,1.128]
[1645388173600,1.43026465,2635.8,2635.4,0.0025787]
[1645388174606,1.43026465,2635.8,2635.3,1.128]
[1645388174805,1.43026465,2635.8,2635.4,0.0025787]
[1645388175809,1.43026465,2635.8,2635.3,1.128]
[1645388176048,1.43026465,2635.8,2635.4,0.0025787]
[1645388176250,1.42247954,2635.7,2635.4,0.0025787]
[1645388176849,1.42247954,2635.7,2634.9,2.4467]
[1645388177249,1.42247954,2635.7,2635.4,0.00257868]
[1645388177451,0.97291139,2635.6,2635.4,0.00257868]
[1645388178049,0.97291139,2635.6,2634.9,2.4467]
[1645388178457,2.39539093,2635.6,2635.4,0.0025787]
[1645388179252,2.39539093,2635.6,2634.9,2.4467]
[1645388179653,2.39539093,2635.6,2635.4,0.0025787]
[1645388180505,2.39539093,2635.6,2634.9,2.4467]
[1645388180704,2.39539093,2635.6,2635.4,0.0025787]
[1645388181007,1.42247954,2635.5,2635.4,0.0025787]
[1645388181202,2.39539093,2635.6,2635.4,0.0025787]
[1645388181804,2.39539093,2635.6,2634.9,2.4467]
[1645388182004,1.43025895,2635.5,2635.4,0.0025787]
[1645388183005,0.00777941,2635.5,2634.9,2.4467]
[1645388183203,0.00777941,2635.5,2635.3,0.00257871]
[1645388183860,0.00777941,2635.5,2635.3,0.30257871]
[1645388184055,1.38025895,2636.0,2635.3,0.30257871]
[1645388184259,1.38025895,2636.0,2635.4,0.548]
[1645388184455,1.38025895,2636.0,2635.4,1.48450147]
[1645388185654,3.04915364,2636.3,2635.4,0.55057877]
[1645388185655,1.89645364,2636.2,2635.4,0.55057877]
[1645388186054,1.89645364,2636.2,2635.4,0.50057877]
[1645388186260,1.89645364,2636.1,2635.4,0.50057877]
[1645388186554,1.89645364,2636.1,2635.4,0.498]
[1645388186755,1.89645364,2636.1,2635.4,0.50057883]
[1645388187406,1.89645364,2636.2,2635.4,0.50057883]
[1645388187599,1.89645364,2636.1,2635.4,0.50057883]
[1645388187801,1.89645364,2636.1,2635.4,0.498]
[1645388188000,1.89645364,2636.1,2635.4,0.50057883]
[1645388189098,1.89645364,2636.1,2635.4,0.498]
[1645388189300,1.89645364,2636.1,2635.4,0.5005788]
[1645388189704,1.89645364,2636.0,2635.4,0.5005788]
[1645388189902,1.89645364,2636.1,2635.4,12.0005788]
[1645388190108,1.89645364,2636.3,2635.6,11.5]
[1645388190301,9.24035364,2636.4,2635.7,0.548]
[1645388190503,9.24293143,2636.4,2635.7,0.548]
[1645388190703,1.89903143,2636.4,2635.7,0.548]
[1645388191359,1.89645364,2636.4,2635.7,0.548]
[1645388191556,1.89645364,2636.4,2635.7,12.048]
[1645388191755,1.89903166,2636.4,2635.7,0.548]
[1645388192157,1.42603236,2636.1,2635.7,0.548]
[1645388192355,1.42603236,2636.0,2635.7,0.548]
[1645388192555,1.42603236,2635.9,2635.7,0.548]
[1645388192755,1.42603236,2635.9,2635.7,0.498]
[1645388194059,1.43356195,2636.0,2635.7,0.498]
[1645388194458,1.42603236,2635.9,2635.7,0.498]
[1645388196202,1.42603236,2635.9,2635.5,1.175]
[1645388196403,1.42603236,2635.8,2635.4,0.00257883]
[1645388197203,1.42603236,2635.7,2635.4,0.00257883]
[1645388197405,1.42603236,2635.8,2635.2,0.548]
[1645388197604,1.42603236,2635.8,2635.4,0.0025787]
[1645388197807,0.00752579,2635.8,2635.4,0.0025787]
[1645388198680,1.43355815,2635.8,2635.2,0.548]
[1645388198876,1.43355815,2635.8,2635.4,0.0025787]
[1645388199283,0.00752579,2635.8,2635.4,0.0025787]
[1645388199580,1.43355815,2635.8,2635.4,0.0025787]
[1645388199779,1.38355815,2635.8,2635.2,0.548]
[1645388199981,1.38355815,2635.9,2635.4,0.0025787]
[1645388200883,1.38355815,2635.9,2635.2,0.548]
[1645388201280,1.38355815,2635.9,2635.4,0.00257873]
[1645388201787,1.38355815,2635.9,2635.5,0.548]
[1645388202620,1.89645364,2636.2,2635.5,0.548]
[1645388202803,2.77226404,2636.2,2635.5,0.548]
[1645388203102,0.00752389,2635.7,2635.5,0.548]
[1645388204205,2.389e-05,2635.7,2635.5,12.048]
[1645388204606,2.389e-05,2635.7,2635.5,13.2043]
[1645388205006,2.389e-05,2635.7,2635.6,11.5]
[1645388205205,2.389e-05,2635.7,2635.6,12.048]
[1645388206054,2.389e-05,2635.7,2635.6,0.548]
[1645388208053,1.90366551,2636.3,2635.6,12.048]
[1645388208255,1.42687486,2636.1,2635.6,12.048]
[1645388209054,1.42687486,2636.1,2635.6,0.548]
[1645388209660,1.42687486,2636.2,2635.6,0.54152203]
[1645388210200,1.42687486,2636.2,2635.6,0.49152203]
[1645388211106,1.42687486,2636.1,2635.6,11.99152203]
[1645388211403,1.42687486,2636.1,2635.6,0.49152203]
[1645388211601,1.42687486,2636.1,2635.6,0.79152203]
[1645388211804,1.42687486,2636.1,2635.6,0.49152203]
[1645388212001,1.42687486,2636.2,2635.6,0.49152203]
[1645388212402,1.42687486,2636.2,2635.7,11.5]
[1645388212603,1.42687486,2636.2,2635.7,12.048]
[1645388213001,0.00696946,2636.0,2635.7,12.048]
[1645388217810,1.43384242,2636.2,2635.7,12.048]
[1645388218012,0.00696756,2636.2,2635.7,12.048]
[1645388218211,0.00696756,2636.2,2635.7,12.99712]
[1645388218612,0.00696756,2636.2,2635.7,1.49712]
[1645388218811,0.00696756,2636.2,2635.7,0.548]
[1645388219411,0.00696756,2636.2,2635.8,11.5]
[1645388219814,0.00696756,2636.2,2635.7,0.548]
[1645388220019,1.43384242,2636.2,2635.7,0.548]
[1645388221060,0.86697112,2635.8,2635.7,0.548]
[1645388221372,0.08874661,2635.6,2635.0,1.8984368]
[1645388221559,0.08874661,2635.6,2634.8,0.0025829]
[1645388221560,0.08874661,2635.6,2634.8,1.2075829]
[1645388221762,0.08874661,2635.6,2635.4,0.00243155]
[1645388222458,1.51393305,2635.6,2635.4,0.00243155]
[1645388222663,1.51393305,2635.6,2634.8,1.2075829]
[1645388222960,1.42518644,2635.5,2635.4,0.00243161]
[1645388223159,2.32233305,2635.6,2635.4,0.00243161]
[1645388223359,1.42518644,2635.5,2635.4,0.00243161]
[1645388223860,2.32233305,2635.6,2634.8,1.2075829]
[1645388224059,2.12233305,2635.6,2635.3,0.00257689]
[1645388224904,2.12233305,2635.6,2634.8,1.2075829]
[1645388225103,1.42518644,2635.5,2634.8,1.2075829]
[1645388225307,1.42518644,2635.5,2635.3,0.00257689]
[1645388225504,0.69714661,2635.6,2635.3,0.00257689]
[1645388225505,1.42518644,2635.6,2635.3,0.00257689]
[1645388225704,1.42518644,2635.5,2635.3,0.00257689]
[1645388226105,1.42518644,2635.5,2634.9,0.00257912]
[1645388226307,1.67518644,2635.6,2634.9,0.00257912]
[1645388226603,1.67518644,2635.6,2635.3,0.00257691]
[1645388227406,1.67518644,2635.6,2634.9,0.00257912]
[1645388227606,1.67518644,2635.6,2635.3,0.00257666]
[1645388228007,0.00695997,2635.5,2635.3,0.00257666]
[1645388228655,0.00695997,2635.5,2634.9,0.01288732]
[1645388228656,0.00695997,2635.5,2634.9,0.00257912]
[1645388228855,1.43214641,2635.5,2635.3,0.00257668]
[1645388229063,5.00695997,2635.5,2635.3,0.00257668]
[1645388229263,5.60695997,2635.5,2635.3,0.00141668]
[1645388229460,1.0,2635.4,2635.3,0.00141668]
[1645388229857,1.0,2635.4,2633.9,0.00257912]
[1645388230057,1.03679105,2634.8,2633.9,0.00257912]
[1645388230260,0.25,2634.5,2633.9,0.00257912]
[1645388230661,0.25,2634.5,2634.1,11.5]
[1645388230859,0.25,2634.5,2634.3,11.5]
[1645388231059,0.25,2634.5,2634.4,12.048]
[1645388231459,0.25,2634.5,2634.4,0.548]
[1645388231660,1.1971,2635.3,2634.4,0.548]
[1645388231859,0.25,2635.0,2634.5,0.00257912]
[1645388232308,0.25,2635.0,2634.2,0.548]
[1645388232513,0.25,2635.0,2634.6,0.00257893]
[1645388233411,0.25,2635.0,2634.5,0.00257912]
[1645388233709,0.25,2635.0,2634.7,0.00257892]
[1645388234708,0.25,2635.0,2634.5,0.00257912]
[1645388234909,0.25,2635.0,2634.7,0.0025789]
[1645388235908,0.25,2635.0,2634.5,0.00257912]
[1645388236156,0.25,2635.0,2634.7,0.0025789]
[1645388237152,0.25,2635.0,2634.5,0.00257912]
[1645388237357,0.25,2635.0,2634.7,0.0025789]
[1645388238155,0.25,2635.0,2634.5,0.00257912]
[1645388238460,0.25,2635.0,2634.7,0.0025789]
[1645388238854,0.01279058,2634.9,2634.7,0.0025789]
[1645388239454,0.01279058,2634.9,2634.5,0.00257912]
[1645388239656,0.01279058,2634.9,2634.7,0.00257892]
[1645388240703,0.01279058,2634.9,2634.5,0.00257912]
[1645388240905,0.01279058,2634.9,2634.7,0.00257892]
[1645388241905,0.01279058,2634.9,2634.5,0.00257912]
[1645388242106,0.01279058,2634.9,2634.7,0.00257892]
[1645388243106,0.01279058,2634.9,2634.5,0.00257912]
[1645388243307,0.01279058,2634.9,2634.7,0.00257892]
[1645388244353,0.01279058,2634.9,2634.5,0.00257912]
[1645388244555,0.01279058,2634.9,2634.7,0.00257892]
[1645388246654,0.01279058,2634.9,2634.5,0.00257912]
[1645388246953,0.01279058,2634.9,2634.7,0.00257892]
[1645388247602,0.00549717,2634.9,2634.7,0.00257892]
[1645388247802,0.00549717,2634.9,2634.6,0.97882892]
[1645388248024,0.00549717,2634.9,2634.7,0.00257892]
[1645388248405,9.717e-05,2634.9,2634.7,0.00257892]
[1645388248606,1.42459365,2635.5,2634.8,34.048]
[1645388248809,0.25,2635.2,2635.0,11.5]
[1645388249008,0.25,2635.8,2635.1,0.548]
[1645388249203,0.05,2636.0,2635.2,14.71934106]
[1645388249404,1.47459365,2636.0,2635.2,11.5]
[1645388249806,1.47459365,2636.0,2635.1,0.548]
[1645388250004,1.47459365,2636.0,2635.2,1.1775278]
[1645388250204,1.47459365,2636.0,2635.1,12.048]
[1645388250205,1.47459365,2636.0,2635.1,0.548]
[1645388250607,1.47459365,2636.0,2635.3,0.0025767]
[1645388251455,1.47459365,2636.0,2635.1,0.548]
[1645388251662,1.47459365,2636.0,2635.3,0.00257676]
[1645388252659,1.47459365,2636.0,2635.1,0.548]
[1645388252859,1.47459365,2636.0,2635.3,0.00257676]
[1645388253860,1.47459365,2636.0,2635.1,0.548]
[1645388254061,0.01237764,2635.7,2635.3,0.00257677]
[1645388255207,0.01237764,2635.7,2635.3,0.00257667]
[1645388257009,0.01237764,2635.7,2635.3,0.55057667]
[1645388257408,0.01237764,2635.7,2635.3,0.548]
[1645388257609,0.01237764,2635.7,2635.3,0.55057872]
[1645388258659,0.01237764,2635.7,2635.3,0.548]
[1645388258860,0.01237764,2635.7,2635.3,0.55057872]
[1645388259159,1.48696961,2636.0,2635.3,0.55057872]
[1645388259760,1.48696961,2636.0,2635.3,0.548]
[1645388260161,1.48696961,2636.0,2635.3,0.55057882]
[1645388260965,1.48696961,2636.0,2635.3,0.548]
[1645388261462,1.48696961,2636.0,2635.3,0.55057882]
[1645388262304,1.48696961,2636.0,2635.3,0.548]
[1645388262504,1.48696961,2636.0,2635.3,0.55057882]
[1645388262708,1.42459365,2635.9,2635.3,0.55057882]
[1645388263505,1.42459365,2635.9,2635.3,0.548]
[1645388263709,1.48696961,2636.0,2635.3,0.55057878]
[1645388264207,1.42459365,2635.9,2635.3,0.55057878]
[1645388264611,1.42459365,2635.9,2635.3,0.548]
[1645388264808,1.42459365,2635.9,2635.3,0.55057878]
[1645388265010,1.48696961,2636.0,2635.3,0.55057878]
[1645388265911,1.48696961,2636.0,2635.3,0.548]
[1645388266155,1.48696961,2636.0,2635.3,0.55057882]
[1645388267059,1.48696961,2636.0,2635.3,0.548]
[1645388267060,0.06237596,2636.0,2635.3,0.548]
[1645388267259,1.48696961,2636.0,2635.3,0.55057882]
[1645388267554,0.01237819,2635.8,2635.3,0.55057882]
[1645388268355,0.01237819,2635.8,2635.3,0.548]
[1645388268558,0.01237819,2635.8,2635.3,0.55057875]
[1645388269360,0.01237819,2635.8,2635.3,0.548]
[1645388269562,0.25,2635.7,2635.3,0.548]
[1645388269806,0.25,2635.7,2635.3,0.50057875]
[1645388270409,0.25,2635.7,2635.4,3.21164971]
[1645388270609,0.25,2635.7,2635.5,0.548]
[1645388271406,0.25,2635.7,2635.6,1.08887572]
[1645388272607,0.26237651,2635.7,2635.6,1.08887572]
[1645388272813,0.26237651,2635.7,2635.5,0.548]
[1645388274768,0.26237651,2635.7,2635.3,0.00257878]
[1645388275364,0.26237651,2635.7,2635.2,2.33170988]
[1645388275763,0.26237651,2635.7,2635.3,0.00257872]
[1645388276666,0.26237651,2635.7,2635.2,2.33170988]
[1645388276863,0.26237651,2635.7,2635.3,0.00257872]
[1645388277909,0.26237651,2635.7,2635.2,2.33170988]
[1645388278108,0.26237651,2635.7,2635.3,0.00257872]
[1645388279006,0.26237651,2635.7,2635.2,2.33170988]
[1645388279405,0.26237651,2635.7,2635.3,0.00257872]
[1645388280208,0.26237651,2635.7,2635.2,5.54449338]
[1645388280411,0.26237651,2635.7,2635.3,0.548]
[1645388280611,0.26237651,2635.7,2635.3,0.55057872]
[1645388280809,0.26237651,2635.7,2635.6,1.06397455]
[1645388282863,0.21237651,2635.7,2635.6,1.06397455]
[1645388286322,1.42459365,2636.5,2635.7,14.0123]
[1645388286523,0.00257805,2636.1,2635.8,12.4490509]
[1645388286920,0.00257805,2636.1,2635.8,0.9490509]
[1645388287123,0.00257805,2636.1,2636.0,0.86918791]
[1645388287527,0.25,2636.3,2636.0,0.86918791]
[1645388287731,0.00257827,2636.2,2636.0,0.86918791]
[1645388288328,7.827e-05,2636.2,2636.0,12.36918791]
[1645388288585,7.827e-05,2636.2,2636.1,4.048]
[1645388288782,0.25,2636.3,2636.1,4.048]
[1645388289080,0.25,2636.3,2636.2,3.5]
[1645388291784,0.2475,2636.3,2636.2,3.5]
[1645388291984,0.2425,2636.3,2636.2,3.5]
[1645388292624,7.821e-05,2636.4,2636.3,11.5]
[1645388292829,7.821e-05,2636.4,2636.3,3.5]
[1645388293434,1.42459365,2637.2,2636.3,3.5]
[1645388293624,1.42459365,2637.0,2636.4,0.548]
[1645388293823,1.42459365,2637.0,2636.5,3.5]
[1645388294025,1.42459365,2637.1,2636.6,0.97263984]
[1645388294227,1.42459365,2637.1,2636.7,3.5]
[1645388294726,1.42459365,2637.1,2636.5,0.548]
[1645388294923,1.42459365,2637.1,2636.6,3.5]
[1645388295323,1.42459365,2637.2,2636.6,3.5]
[1645388295528,1.42459365,2637.3,2636.6,3.5]
[1645388295723,1.8994582,2637.5,2636.6,3.5]
[1645388295724,1.42459365,2637.2,2636.6,3.5]
[1645388295923,1.42459365,2637.2,2636.6,4.4220612]
[1645388296163,0.00175551,2637.1,2636.6,4.4220612]
[1645388296858,0.00175551,2637.1,2636.6,15.9220612]
[1645388297062,1.42459365,2637.3,2636.6,15.9220612]
[1645388297259,0.00175551,2637.0,2636.6,15.9220612]
[1645388297460,0.00175551,2637.0,2636.6,4.4220612]
[1645388297660,0.00175551,2637.0,2636.2,6.4535]
[1645388297661,0.00175551,2637.0,2636.3,3.5]
[1645388297861,1.42634916,2637.0,2636.2,6.4535]
[1645388298262,1.8994582,2637.2,2636.2,9.9535]
[1645388298263,1.42459365,2636.9,2636.2,9.9535]
[1645388298460,1.42459365,2636.9,2636.2,6.4535]
[1645388298662,1.42459365,2636.9,2636.2,9.9535]
[1645388298663,0.00257992,2636.7,2636.2,9.9535]
[1645388299459,1.4374568,2637.0,2636.2,9.9535]
[1645388299914,0.00257997,2636.6,2636.4,1.00491505]
[1645388300112,0.00257997,2636.6,2636.5,3.5]
[1645388300715,0.01286315,2637.0,2636.5,3.5]
[1645388300913,0.00257994,2636.7,2636.5,3.5]
[1645388301314,0.00257994,2636.7,2636.4,1.00491505]
[1645388301514,0.00257994,2636.7,2636.5,3.5]
[1645388301919,0.01286315,2637.0,2636.5,3.5]
[1645388302219,0.00257992,2636.7,2636.5,3.5]
[1645388303019,0.01286315,2637.0,2636.5,3.5]
[1645388303565,0.00257992,2636.7,2636.5,3.5]
[1645388304366,0.01245967,2636.6,2636.5,3.5]
[1645388304970,0.01245967,2636.6,2636.3,3.5]
[1645388305775,0.01503964,2636.6,2636.4,1.17955549]
[1645388305968,0.01503964,2636.6,2636.5,3.5]
[1645388306769,0.01245967,2636.6,2636.5,3.5]
[1645388307415,0.01245967,2636.6,2636.3,3.5]
[1645388308116,0.01503964,2636.6,2636.3,3.5]
[1645388309116,0.01245967,2636.6,2636.3,3.5]
[1645388309315,0.01503964,2636.6,2636.3,3.5]
[1645388310317,0.01245967,2636.6,2636.3,3.5]
[1645388310519,0.01503964,2636.6,2636.2,6.4535]
[1645388310925,0.01503964,2636.6,2636.0,3.5]
[1645388311178,1.42459365,2636.5,2635.9,0.00258064]
[1645388311372,1.42459365,2636.3,2635.9,0.00258064]
[1645388311574,0.94665787,2636.0,2635.2,0.00257912]
[1645388311770,0.25,2635.8,2635.2,0.00257912]
[1645388311971,0.25,2635.8,2635.4,0.01032387]
[1645388312668,0.25,2635.8,2634.9,0.00257912]
[1645388313070,0.25,2635.8,2635.5,0.00258049]
[1645388313970,0.25,2635.8,2634.9,0.00257912]
[1645388314171,0.25,2635.8,2635.5,0.00258048]
[1645388316314,0.25,2635.8,2634.9,0.55057912]
[1645388316515,0.25,2635.8,2635.5,0.00258048]
[1645388317514,0.25,2635.8,2635.1,0.00257912]
[1645388317717,0.25,2635.8,2635.5,0.00258048]
[1645388318775,0.25,2635.8,2634.8,3.50257912]
[1645388318971,0.0120336,2635.7,2635.5,0.00258048]
[1645388319372,0.2120336,2635.8,2635.5,0.00258048]
[1645388320075,0.2120336,2635.8,2634.8,4.41161878]
[1645388320273,0.2120336,2635.8,2635.5,0.00258048]
[1645388321075,0.2120336,2635.8,2634.8,4.41161878]
[1645388321475,0.2120336,2635.8,2635.5,0.00258048]
[1645388322312,0.2120336,2635.8,2635.3,3.5]
[1645388322513,0.2120336,2635.8,2635.5,0.00258048]
[1645388323617,0.2120336,2635.8,2635.0,0.00257912]
[1645388324015,0.2120336,2635.8,2635.5,0.00258048]
[1645388324016,0.01203199,2635.6,2635.5,0.00258048]
[1645388324717,0.01203199,2635.6,2635.0,0.00257912]
[1645388324917,0.01203199,2635.6,2635.4,0.00258051]
[1645388325922,0.01203199,2635.6,2635.0,0.00257912]
[1645388326172,0.01203199,2635.6,2635.4,0.00258053]
[1645388327168,0.01203199,2635.6,2635.0,0.00257912]
[1645388327368,0.01203199,2635.6,2635.4,0.00258053]
[1645388328372,0.01203199,2635.6,2635.0,0.00257912]
[1645388328569,0.01203199,2635.6,2635.4,0.00258053]
[1645388328873,0.22366447,2635.8,2635.4,0.00258053]
[1645388329468,0.22366447,2635.8,2635.0,0.00257912]
[1645388329918,0.22366447,2635.8,2635.5,0.00258049]
[1645388330724,0.22366447,2635.8,2635.0,0.00257912]
[1645388330917,0.22366447,2635.8,2635.5,0.00258048]
[1645388331919,0.22366447,2635.8,2635.0,0.00257912]
[1645388332119,0.22366447,2635.8,2635.5,0.00258048]
[1645388333123,0.22366447,2635.8,2635.0,0.00257912]
[1645388333419,0.22366447,2635.8,2635.5,0.00258048]
[1645388334270,0.22366447,2635.8,2635.0,0.00257912]
[1645388334669,0.22366447,2635.8,2635.5,0.00258048]
[1645388335470,0.22366447,2635.8,2635.0,0.00257912]
[1645388335669,0.22271787,2635.8,2635.0,0.00257912]
[1645388335871,0.22271787,2635.8,2635.5,0.00258048]
[1645388336476,0.21111787,2635.8,2635.5,0.00258048]
[1645388336873,0.15311787,2635.8,2635.5,3.5]
[1645388337312,0.15311787,2635.8,2635.5,3.50258048]
[1645388337916,0.15311787,2635.8,2635.5,3.5]
[1645388338113,0.15311787,2635.8,2635.5,3.50258048]
[1645388339114,0.15311787,2635.8,2635.5,3.5]
[1645388339320,0.15311787,2635.8,2635.5,3.50258048]
[1645388340419,0.15311787,2635.8,2635.5,15.0]
[1645388340619,1.787e-05,2635.8,2635.6,12.048]
[1645388340819,1.787e-05,2635.8,2635.7,3.5]
[1645388341067,1.787e-05,2635.8,2635.7,4.048]
[1645388341669,1.787e-05,2635.8,2635.7,0.548]
[1645388341874,1.787e-05,2635.8,2635.7,4.048]
[1645388343276,0.01157548,2635.8,2635.7,4.048]
[1645388343474,0.25,2635.9,2635.8,9.5]
[1645388343475,0.16157548,2635.9,2635.8,9.5]
[1645388343676,3.78271934,2636.5,2635.8,13.54160825]
[1645388343876,3.78013979,2636.5,2635.8,13.54160825]
[1645388344275,3.78271941,2636.5,2635.8,13.54160825]
[1645388344478,0.93461941,2636.5,2635.8,13.54160825]
[1645388344914,0.00257962,2636.5,2635.8,13.54160825]
[1645388345214,1.67459365,2636.6,2635.8,13.54160825]
[1645388345418,0.00257982,2636.5,2635.9,0.00258044]
[1645388346414,1.42459365,2636.6,2635.8,13.54160825]
[1645388346617,0.00257985,2636.5,2635.9,0.00258047]
[1645388347520,2.43585838,2636.7,2635.8,13.54160825]
[1645388347718,1.4271735,2636.5,2635.9,0.00258047]
[1645388348119,1.42459365,2636.4,2635.9,0.00258047]